bitfinex-derivatives/quotes_ETHF0:USTF0_20250104
["timestamp","ask_amount","ask_price","bid_price","bid_amount"]
[1735949816468,0.6906,3611.4,3611.3,2.6667501]
[1735949817262,0.6906,3611.4,3611.3,2.9443501]
[1735949817471,0.6906,3611.4,3611.3,2.6667501]
[1735949818074,0.6906,3611.4,3611.3,2.9443501]
[1735949818869,0.6906,3611.4,3611.3,2.6667501]
[1735949820073,0.6906,3611.4,3611.3,2.9443501]
[1735949820268,2.17309134,3611.6,3611.3,2.6673201]
[1735949820475,2.17309134,3611.6,3611.5,0.27701]
[1735949822371,7.55398268,3612.0,3611.4,1.0002201]
[1735949822372,2.17309134,3611.8,3611.7,0.277]
[1735949822572,2.17309134,3611.8,3611.7,1.2772201]
[1735949824471,3.2078,3612.0,3611.7,1.0002201]
[1735949824674,3.2078,3612.0,3611.9,1.2772001]
[1735949824875,3.2078,3612.0,3611.9,2.3582001]
[1735949825075,4.34618268,3612.2,3611.9,2.8180201]
[1735949825269,8.65063927,3612.4,3612.1,2.0004402]
[1735949825574,8.65063927,3612.4,3612.3,2.2773902]
[1735949825769,2.98372587,3612.4,3612.3,2.2773902]
[1735949826169,2.5332186,3612.4,3612.3,2.2773902]
[1735949826571,3.2078,3613.1,3612.4,0.69237]
[1735949826869,3.2078,3613.1,3613.0,1.2771201]
[1735949827073,3.8955,3613.1,3613.0,2.3581201]
[1735949832886,3.2078,3613.1,3613.0,2.3581201]
[1735949833383,0.7258,3613.2,3613.1,0.27689]
[1735949833889,0.7258,3613.2,3613.1,0.99329]
[1735949836084,4.6093,3613.9,3613.1,0.7164]
[1735949836280,3.9395,3613.9,3613.8,1.2770601]
[1735949836590,3.9395,3613.9,3613.8,3.3582802]
[1735949836591,3.2078,3613.9,3613.8,3.3582802]
[1735949838484,3.2078,3613.9,3613.8,2.3580601]
[1735949839488,3.2078,3613.9,3613.8,1.2770601]
[1735949839690,3.2078,3613.9,3613.8,2.3580601]
[1735949842300,3.2078,3613.9,3613.8,3.3582802]
[1735949842502,3.2078,3613.9,3613.8,2.3580601]
[1735949842898,3.2078,3613.9,3613.8,3.3582802]
[1735949843700,3.2078,3613.9,3613.8,2.3580601]
[1735949844306,3.2078,3613.9,3613.8,3.3582802]
[1735949845303,3.2078,3614.3,3614.2,0.27681]
[1735949845502,3.2078,3614.3,3614.2,1.2770301]
[1735949845694,3.2078,3614.3,3614.2,2.3570301]
[1735949846704,3.2078,3614.3,3614.2,3.0894301]
[1735949846905,0.7079,3614.5,3614.4,0.27679]
[1735949847107,0.7079,3614.5,3614.4,1.2770101]
[1735949848207,0.7079,3614.5,3614.4,1.0002201]
[1735949849207,0.7079,3614.5,3614.4,1.2770101]
[1735949852507,3.9157,3614.5,3614.4,1.2770101]
[1735949859210,3.9157,3614.5,3612.5,10.04484606]
[1735949859515,3.2078,3614.1,3613.5,0.21773363]
[1735949859709,3.2078,3614.1,3613.8,1.08]
[1735949859710,2.1323,3614.0,3613.8,1.08]
[1735949860019,2.1323,3614.0,3613.8,1.35683]
[1735949860210,2.1323,3614.0,3613.8,1.08]
[1735949860517,2.1323,3614.0,3613.9,0.27683]
[1735949860716,2.1323,3614.0,3613.9,1.0002201]
[1735949860912,2.1323,3614.0,3613.9,1.2770501]
[1735949862013,2.1323,3614.0,3613.9,1.0002201]
[1735949862214,2.1323,3614.0,3613.8,1.35683]
[1735949863415,2.1323,3614.0,3613.8,1.08]
[1735949863616,2.1323,3614.0,3613.9,0.27683]
[1735949863808,2.1323,3614.0,3613.9,1.35683]
[1735949864407,2.1323,3614.0,3613.9,1.08]
[1735949864613,2.1323,3614.0,3613.9,1.35683]
[1735949865210,2.1323,3614.0,3613.9,1.08]
[1735949865414,2.1323,3614.0,3613.9,1.35683]
[1735949866017,2.1323,3614.0,3613.9,1.08]
[1735949866219,2.1323,3614.0,3613.9,1.35683]
[1735949867924,0.27687,3613.4,3613.3,1.08]
[1735949868222,0.27691,3612.9,3612.8,1.08]
[1735949868521,3.48471,3612.9,3612.8,1.08]
[1735949868723,3.2078,3612.9,3612.5,8.61120493]
[1735949868919,0.27692,3612.8,3612.7,1.08]
[1735949869218,0.27692,3612.8,3612.6,1.08]
[1735949869421,0.27692,3612.8,3612.5,6.49510954]
[1735949869422,3.2078,3612.9,3612.5,6.49510954]
[1735949869625,0.27693,3612.7,3612.5,7.57510954]
[1735949869824,1.69473,3612.6,3612.5,7.57510954]
[1735949870025,2.41603,3612.6,3612.5,7.57510954]
[1735949870327,2.41603,3612.6,3612.5,1.08]
[1735949870524,2.41603,3612.6,3612.4,1.08]
[1735949870729,3.2078,3612.5,3612.4,1.08]
[1735949870926,0.27695,3612.3,3612.2,1.08]
[1735949871424,0.27695,3612.4,3612.2,1.08]
[1735949871627,3.48474,3612.5,3612.2,1.35696]
[1735949871821,3.48474,3612.5,3612.2,0.27696]
[1735949873028,0.27695,3612.4,3612.2,0.27696]
[1735949875827,3.2078,3612.3,3612.2,0.27696]
[1735949876029,3.2078,3612.3,3612.1,1.08]
[1735949876233,3.2078,3612.3,3612.1,1.35696]
[1735949876729,3.2078,3612.3,3612.2,0.27696]
[1735949877327,3.48475,3612.3,3612.1,0.27696]
[1735949877628,3.2078,3612.3,3612.1,1.08]
[1735949878330,0.27697,3612.2,3612.0,1.08]
[1735949878731,0.27697,3612.2,3612.0,1.35697]
[1735949878930,0.27697,3612.2,3612.1,0.27697]
[1735949879233,0.27697,3612.2,3612.0,1.35697]
[1735949880528,3.2078,3612.3,3612.0,1.08]
[1735949880728,3.48476,3612.3,3612.1,0.27696]
[1735949882934,3.2078,3612.3,3612.2,0.27696]
[1735949884535,3.2078,3612.3,3612.2,1.35796]
[1735949887335,3.2078,3612.3,3612.2,3.47405539]
[1735949889335,3.48472,3612.7,3612.5,0.27693]
[1735949889844,3.2078,3612.7,3612.6,0.6804]
[1735949890136,3.48472,3612.7,3612.6,0.6804]
[1735949891332,3.48472,3612.7,3612.6,0.95733]
[1735949893037,3.48472,3612.7,3612.3,0.6954]
[1735949893238,3.48472,3612.7,3612.6,0.27693]
[1735949894634,3.2078,3612.7,3612.6,0.27693]
[1735949895740,3.48472,3612.7,3612.6,0.27693]
[1735949896043,3.2078,3612.7,3612.6,0.27693]
[1735949896843,3.48472,3612.7,3612.6,0.27693]
[1735949897040,3.2078,3612.7,3612.6,0.27693]
[1735949898236,3.2078,3612.7,3612.6,1.27343137]
[1735949898941,3.48472,3612.7,3612.6,1.27343137]
[1735949899441,3.48472,3612.7,3612.6,0.99650137]
[1735949899641,3.2078,3612.7,3612.6,1.27343137]
[1735949902438,3.2078,3612.7,3612.6,2.39412684]
[1735949903943,3.2078,3613.1,3612.8,0.27691]
[1735949904143,3.2078,3613.1,3612.9,1.7502]
[1735949904345,3.2078,3613.1,3612.9,2.4475]
[1735949904544,3.4847,3613.1,3612.9,2.4475]
[1735949904745,3.2078,3613.1,3612.9,2.7244]
[1735949905143,3.2078,3613.1,3613.0,0.2769]
[1735949905347,3.2078,3613.1,3612.9,2.7244]
[1735949907150,3.2078,3613.1,3613.0,0.2769]
[1735949910055,3.2078,3613.1,3613.0,0.9969]
[1735949912559,3.2078,3613.5,3613.4,0.27687]
[1735949912960,3.25051331,3613.7,3613.6,0.27685]
[1735949913253,3.25051331,3613.7,3613.6,1.08]
[1735949913463,0.7039,3613.9,3613.6,1.35685]
[1735949913655,0.6886,3613.8,3613.6,1.08]
[1735949913857,0.6886,3613.8,3613.6,1.35685]
[1735949914250,0.6886,3613.8,3613.6,1.08]
[1735949915459,0.6886,3613.8,3613.6,1.35685]
[1735949916050,0.6886,3613.8,3613.7,0.27684]
[1735949918062,3.8964,3613.8,3613.7,0.27684]
[1735949919062,3.2078,3613.8,3613.7,0.27684]
[1735949919265,3.2078,3613.8,3613.7,1.01874]
[1735949925955,3.2078,3613.8,3613.7,0.27684]
[1735949926155,3.9157,3613.8,3613.7,0.27684]
[1735949927669,3.2078,3613.8,3613.7,0.27684]
[1735949928158,3.2078,3613.8,3613.7,0.99784]
[1735949929961,3.2078,3614.3,3613.7,0.721]
[1735949930163,3.2078,3614.3,3614.2,1.27285531]
[1735949931069,0.6832,3614.6,3614.5,0.27678]
[1735949931371,3.25051331,3614.7,3614.6,0.27678]
[1735949931673,3.2078,3614.8,3614.6,0.27678]
[1735949931674,6.45831331,3614.8,3614.6,0.27678]
[1735949932267,6.45831331,3614.8,3614.5,2.07604531]
[1735949932870,6.45831331,3614.8,3614.6,0.27678]
[1735949933071,6.45831331,3614.8,3614.7,0.27677]
[1735949933463,3.2078,3614.8,3614.7,0.27677]
[1735949933873,0.27677,3614.7,3614.6,0.27677]
[1735949934275,3.2078,3614.8,3614.6,0.27677]
[1735949934276,3.48456,3614.8,3614.6,0.27677]
[1735949934881,3.48456,3614.8,3614.7,0.27677]
[1735949939176,3.48456,3614.8,3614.5,2.07604531]
[1735949939177,3.2078,3614.8,3614.5,2.07604531]
[1735949939380,3.48457,3614.8,3614.7,0.27677]
[1735949939776,0.27677,3614.7,3614.6,0.27677]
[1735949940571,3.48456,3614.8,3614.7,0.27677]
[1735949942583,6.73507331,3614.8,3614.7,0.27677]
[1735949943574,3.48456,3614.8,3614.7,0.27677]
[1735949946382,7.15031618,3614.8,3614.7,0.27677]
[1735949947075,6.87355618,3614.8,3614.7,1.27281531]
[1735949947871,7.15031618,3614.8,3614.7,1.27281531]
[1735949948481,6.87355618,3614.8,3614.7,1.27281531]
[1735949948983,5.65525425,3614.8,3614.7,1.27281531]
[1735949949982,5.37849425,3614.8,3614.7,1.27281531]
[1735949951584,5.65525425,3614.8,3614.7,1.27281531]
[1735949952085,5.37849425,3614.8,3614.7,1.27281531]
[1735949952484,3.48456,3614.8,3614.7,1.27281531]
[1735949952985,3.2078,3614.8,3614.7,1.27281531]
[1735949959980,5.38047456,3614.8,3614.7,0.27677]
[1735949960182,5.38047456,3614.8,3614.7,1.27281531]
[1735949962088,2.17267456,3614.8,3614.7,1.27281531]
[1735949968402,3.2078,3614.9,3614.8,0.27676]
[1735949968403,5.38047456,3614.9,3614.8,0.27676]
[1735949968694,2.17267456,3614.9,3614.8,0.27676]
[1735949968895,2.17267456,3614.9,3614.8,1.04186]
[1735949969795,2.17267456,3615.3,3614.8,0.7651]
[1735949970089,2.17267456,3615.3,3615.2,1.27277531]
[1735949970295,2.17267456,3615.3,3615.2,2.35177531]
[1735949970689,2.17267456,3615.3,3615.2,3.34782062]
[1735949971890,2.17267456,3615.4,3615.2,3.07109062]
[1735949972095,2.17267456,3615.4,3615.3,2.02696531]
[1735949973791,5.38047456,3615.9,3615.7,0.27669]
[1735949973995,5.38047456,3615.9,3615.5,0.99604531]
[1735949974192,5.38047456,3615.9,3615.8,1.27272531]
[1735949974991,3.2078,3615.9,3615.8,1.27272531]
[1735949975187,2.17267456,3616.0,3615.8,1.27272531]
[1735949975492,2.17267456,3616.0,3615.9,1.35568]
[1735949976494,1.4102,3616.1,3615.9,1.857]
[1735949976699,1.4102,3616.1,3616.0,1.27271531]
[1735949977495,0.7054,3616.1,3616.0,1.27271531]
[1735949977989,2.17267456,3616.2,3616.0,0.99604531]
[1735949978194,2.17267456,3616.2,3616.1,0.27666]
[1735949979092,3.936,3616.3,3616.0,1.68544531]
[1735949979293,3.936,3616.3,3616.2,1.27269531]
[1735949980003,3.2078,3616.3,3616.2,1.27269531]
[1735949980190,2.90207456,3616.4,3616.3,0.27665]
[1735949980191,0.7294,3616.4,3616.3,0.27665]
[1735949980902,2.85967456,3616.5,3616.2,0.99604531]
[1735949981101,2.17267456,3616.5,3616.4,2.26873062]
[1735949981707,2.17267456,3616.7,3616.4,1.99209062]
[1735949981898,2.17267456,3616.7,3616.6,2.26871062]
[1735949982201,2.17267456,3616.7,3616.6,3.34671062]
[1735949983304,3.2078,3617.1,3617.0,0.27659]
[1735949983503,3.2078,3617.1,3617.0,1.27263531]
[1735949984197,2.1117,3617.5,3617.0,0.99604531]
[1735949984198,5.3195,3617.5,3617.0,0.99604531]
[1735949984399,3.2078,3617.8,3617.5,0.27655]
[1735949984705,3.9107,3617.8,3617.7,0.99604531]
[1735949986299,3.9107,3617.8,3617.7,1.078]
[1735949986300,4.18723,3617.8,3617.7,1.078]
[1735949987709,0.27656,3617.4,3617.3,1.35457]
[1735949987901,3.2078,3617.4,3617.3,1.35457]
[1735949989109,3.48436,3617.4,3617.1,2.11192159]
[1735949989310,1.4714,3617.3,3617.2,1.35457]
[1735949990003,1.4714,3617.3,3617.2,1.078]
[1735949990206,1.74797,3617.3,3617.2,1.35458]
[1735949990709,4.95577,3617.3,3617.2,1.078]
[1735949990905,5.48097,3617.3,3617.2,1.078]
[1735949994607,5.2044,3617.3,3617.1,3.46650159]
[1735949994807,0.27658,3617.2,3617.1,2.11192159]
[1735949995018,0.27658,3617.2,3617.1,3.18992159]
[1735949995723,5.2044,3617.3,3616.7,2.11192159]
[1735949995925,3.2078,3616.8,3616.7,2.11192159]
[1735949996230,0.2766,3617.0,3616.8,2.0564]
[1735949997224,0.2766,3616.9,3616.8,2.0564]
[1735949998420,0.2766,3616.9,3616.8,1.078]
[1735949999121,3.2078,3617.2,3616.5,1.078]
[1735949999425,0.27663,3616.5,3616.4,1.35464]
[1735949999924,2.27573,3616.5,3616.4,0.27664]
[1735950000113,1.9991,3616.5,3616.4,1.35464]
[1735950001218,1.474,3616.5,3616.4,1.35464]
[1735950002519,0.7401,3616.5,3616.4,1.35464]
[1735950002723,0.27659,3617.0,3616.8,0.27661]
[1735950002921,3.9385,3617.1,3617.0,0.27659]
[1735950003120,3.2078,3617.1,3617.0,0.27659]
[1735950009421,1.00724,3617.7,3617.4,0.27656]
[1735950009422,3.2078,3617.6,3617.4,0.27656]
[1735950009623,3.2078,3617.6,3617.5,1.7732]
[1735950010628,3.2078,3617.6,3617.5,2.04975]
[1735950011727,3.48435,3617.6,3617.5,1.078]
[1735950012730,0.27655,3617.5,3617.4,2.11192159]
[1735950012934,1.00255,3617.5,3617.4,3.18992159]
[1735950013124,0.726,3617.5,3617.4,3.18992159]
[1735950013324,0.726,3617.5,3617.4,3.46648159]
[1735950015831,0.726,3617.5,3617.4,3.18992159]
[1735950016024,0.726,3617.5,3617.4,3.46648159]
[1735950019030,0.726,3617.5,3617.4,3.18992159]
[1735950019228,0.726,3617.5,3617.4,3.46648159]
[1735950019422,1.2522,3617.5,3617.4,3.46648159]
[1735950019624,3.42487456,3617.5,3617.4,3.46648159]
[1735950019823,3.42487456,3617.5,3617.4,1.078]
[1735950020028,3.70142456,3617.5,3617.4,1.078]
[1735950020232,3.70142456,3617.5,3617.4,0.27656]
[1735950020934,1.52875,3617.5,3617.4,0.27656]
[1735950021430,1.2522,3617.5,3617.4,0.27656]
[1735950021831,1.52875,3617.5,3617.4,0.27656]
[1735950022935,1.52875,3617.5,3617.3,1.35457]
[1735950022936,0.27656,3617.4,3617.3,1.35457]
[1735950023232,1.2522,3617.5,3617.0,2.80592159]
[1735950023233,4.77927331,3617.5,3617.4,0.27656]
[1735950023825,4.50271331,3617.5,3617.4,0.27656]
[1735950024331,1.66710648,3617.5,3617.4,0.27656]
[1735950025030,1.94365648,3617.5,3617.4,0.27656]
[1735950026242,0.27657,3617.4,3617.3,0.27656]
[1735950027625,6.26301308,3617.5,3617.4,0.27656]
[1735950028437,5.5715466,3617.5,3617.2,1.078]
[1735950028639,5.5715466,3617.5,3616.9,0.27659]
[1735950028640,0.96797,3617.4,3616.9,0.27659]
[1735950028840,3.2078,3617.0,3616.9,0.27659]
[1735950029941,3.62275738,3617.0,3616.9,0.27659]
[1735950030735,3.62275738,3617.0,3616.9,0.2766]
[1735950030936,3.62275738,3617.0,3616.8,2.0409]
[1735950031138,6.88356154,3617.0,3616.8,2.0409]
[1735950031337,0.27663,3616.5,3616.4,6.49510954]
[1735950031539,3.48443,3616.5,3616.4,6.49510954]
[1735950032546,3.2078,3616.5,3616.4,6.77174954]
[1735950032838,3.2078,3616.5,3616.4,2.38856159]
[1735950032839,5.65550056,3616.5,3616.4,2.38856159]
[1735950033238,5.65550056,3616.5,3616.4,3.46656159]
[1735950033444,8.86330056,3616.5,3616.4,3.46656159]
[1735950034544,3.2078,3616.5,3616.4,3.46656159]
[1735950035852,5.38066083,3616.5,3616.4,3.46656159]
[1735950036749,5.38066083,3616.5,3616.4,3.18992159]
[1735950036941,5.38066083,3616.5,3616.4,3.46656159]
[1735950037553,5.38066083,3616.5,3616.4,3.18992159]
[1735950037853,2.17286083,3616.5,3616.4,3.46656159]
[1735950038245,5.38066083,3616.5,3616.4,3.46656159]
[1735950038548,5.38066083,3616.5,3616.4,3.18992159]
[1735950038549,3.2078,3616.5,3616.4,3.18992159]
[1735950038851,2.44948083,3616.6,3616.4,3.18992159]
[1735950039650,3.2078,3616.5,3616.4,3.18992159]
[1735950040355,3.2078,3616.5,3616.4,2.0724692]
[1735950040855,5.38066083,3616.5,3616.4,2.0724692]
[1735950041842,5.38066083,3616.5,3616.2,0.6945]
[1735950042048,5.65729083,3616.5,3616.3,2.0724692]
[1735950042247,5.38066083,3616.5,3616.3,2.3491092]
[1735950042550,5.38066083,3616.5,3616.3,2.0724692]
[1735950042853,5.65729083,3616.5,3616.3,2.0724692]
[1735950043051,5.38066083,3616.5,3616.3,2.0724692]
[1735950043259,0.27664,3616.4,3616.3,1.078]
[1735950044050,0.6916898,3616.4,3616.3,1.078]
[1735950044243,3.95135285,3616.4,3616.3,1.078]
[1735950046249,0.6916898,3616.4,3616.3,1.35465]
[1735950047655,0.6916898,3616.4,3616.3,1.078]
[1735950049058,3.53252713,3616.4,3616.3,1.35465]
[1735950049455,3.53252713,3616.4,3616.2,1.68018922]
[1735950049650,3.53252713,3616.4,3616.3,0.27665]
[1735950049857,0.27665,3616.3,3616.2,1.95683922]
[1735950050457,0.27665,3616.3,3616.2,1.68018922]
[1735950050658,0.27665,3616.3,3616.2,1.95683922]
[1735950051366,2.44700036,3616.3,3616.2,1.68018922]
[1735950052054,2.44700036,3616.3,3616.2,1.95683922]
[1735950053366,0.27665,3616.3,3616.2,1.95683922]
[1735950053961,0.27665,3616.3,3616.2,1.68018922]
[1735950054361,0.27665,3616.3,3616.2,1.95683922]
[1735950056768,3.48445,3616.3,3616.2,1.95683922]
[1735950058471,3.2078,3616.3,3616.2,1.68018922]
[1735950058670,3.2078,3616.3,3616.2,1.95683922]
[1735950059376,3.48445,3616.3,3616.2,1.95683922]
[1735950060269,3.2078,3616.3,3616.2,1.95683922]
[1735950061373,3.48445,3616.3,3616.2,1.95683922]
[1735950062277,3.2078,3616.3,3616.2,1.95683922]
[1735950063175,3.48445,3616.3,3616.2,1.95683922]
[1735950063478,3.48445,3616.3,3616.2,1.68018922]
[1735950063777,3.48445,3616.3,3616.2,1.95683922]
[1735950063974,3.2078,3616.3,3616.2,1.95683922]
[1735950064478,2.44698036,3616.5,3616.4,0.27664]
[1735950064479,2.17035036,3616.5,3616.4,0.27664]
[1735950064679,2.17035036,3616.5,3616.4,1.2711092]
[1735950064872,2.17035036,3616.5,3616.4,0.9944692]
[1735950065272,2.17035036,3616.5,3616.4,1.2711092]
[1735950065474,0.27663,3616.6,3616.4,0.9944692]
[1735950065674,0.27663,3616.6,3616.4,1.2711092]
[1735950065878,0.27663,3616.6,3616.4,0.9944692]
[1735950066167,0.27662,3616.6,3616.4,0.9944692]
[1735950066477,0.27662,3616.6,3616.4,1.2711092]
[1735950066778,2.44697036,3616.6,3616.4,1.2711092]
[1735950068080,2.17035036,3616.5,3616.4,1.2711092]
[1735950068782,2.17035036,3616.5,3616.4,0.9944692]
[1735950069083,2.44698036,3616.5,3616.4,0.9944692]
[1735950070580,3.25588713,3616.6,3616.4,0.9944692]
[1735950070984,0.27663,3616.5,3616.4,0.9944692]
[1735950071682,3.53251713,3616.6,3616.4,1.2711092]
[1735950073587,3.53251713,3616.5,3616.4,0.9944692]
[1735950073989,3.53251713,3616.5,3616.4,1.2711092]
[1735950074190,3.25588713,3616.5,3616.4,1.2711092]
[1735950074486,3.53251713,3616.5,3616.4,0.9944692]
[1735950074889,3.9475314,3616.5,3616.4,1.2711092]
[1735950075089,3.9475314,3616.5,3616.4,0.9944692]
[1735950076083,0.69164427,3616.5,3616.4,0.9944692]
[1735950077480,0.41501427,3616.5,3616.4,1.2711092]
[1735950077687,4.6228474,3616.6,3616.4,1.2711092]
[1735950078185,0.27663,3616.5,3616.4,0.9944692]
[1735950078382,4.3462174,3616.6,3616.4,0.9944692]
[1735950078587,4.6228474,3616.6,3616.4,1.2711092]
[1735950079190,4.3462174,3616.5,3616.4,1.2711092]
[1735950079590,4.3462174,3616.5,3616.4,0.9944692]
[1735950079889,4.6228474,3616.5,3616.4,0.9944692]
[1735950080089,4.3462174,3616.5,3616.4,1.2711092]
[1735950081798,4.76123167,3616.5,3616.4,0.9944692]
[1735950081987,4.76123167,3616.5,3616.4,1.2711092]
[1735950082691,4.76123167,3616.5,3616.4,0.9944692]
[1735950083700,5.03786167,3616.5,3616.4,0.9944692]
[1735950084185,4.76123167,3616.5,3616.4,0.9944692]
[1735950085089,4.76123167,3616.5,3616.4,1.2711092]
[1735950085288,4.76123167,3616.5,3616.4,0.9944692]
[1735950085490,5.03786167,3616.5,3616.4,0.9944692]
[1735950085691,4.76123167,3616.5,3616.4,0.9944692]
[1735950086286,4.3462174,3616.5,3616.4,0.9944692]
[1735950087089,4.6228474,3616.5,3616.4,0.9944692]
[1735950087493,0.69164427,3616.5,3616.4,0.9944692]
[1735950087788,0.41501427,3616.5,3616.4,1.2711092]
[1735950088588,0.41501427,3616.5,3616.4,0.9944692]
[1735950088785,0.69164427,3616.5,3616.4,0.9944692]
[1735950089696,0.69164427,3616.5,3616.4,1.2711092]
[1735950090000,5.90069093,3616.5,3616.4,1.2711092]
[1735950090391,5.62406093,3616.5,3616.4,1.2711092]
[1735950090995,0.41501427,3616.5,3616.4,1.2711092]
[1735950093599,5.62473024,3616.5,3616.4,1.2711092]
[1735950095606,4.35358138,3616.5,3616.4,1.2711092]
[1735950095902,2.67564378,3616.7,3616.6,0.27662]
[1735950096103,6.53653523,3617.2,3617.1,0.27658]
[1735950096296,6.53653523,3617.2,3617.1,2.3490492]
[1735950097095,3.2623944,3617.2,3617.1,2.3490492]
[1735950097999,2.17420029,3617.2,3617.1,2.0724692]
[1735950098191,2.17420029,3617.2,3617.1,2.3490492]
[1735950099098,2.17420029,3617.2,3617.1,3.5800492]
[1735950099702,2.17420029,3617.3,3617.2,0.27658]
[1735950102207,5.38200029,3617.4,3617.3,0.27657]
[1735950103308,5.65856029,3617.4,3617.3,0.27657]
[1735950103513,5.65856029,3617.4,3617.2,0.27657]
[1735950103906,5.65856029,3617.4,3617.2,0.27658]
[1735950104101,0.27657,3617.3,3617.2,1.077]
[1735950104307,2.19567,3617.3,3617.2,1.077]
[1735950104501,2.19567,3617.3,3617.1,0.9944692]
[1735950104502,0.27658,3617.2,3617.1,0.9944692]
[1735950105106,0.2766,3616.9,3616.8,4.32667857]
[1735950105313,3.4844,3616.9,3616.8,5.40367857]
[1735950105821,6.7467944,3616.9,3616.8,1.077]
[1735950106115,6.4701944,3616.9,3616.7,0.9944692]
[1735950106308,0.6359,3616.8,3616.5,0.9944692]
[1735950106615,0.27663,3616.6,3616.5,0.9944692]
[1735950107425,1.57012,3616.7,3616.5,0.9944692]
[1735950107715,1.57012,3616.7,3616.5,1.2710992]
[1735950108319,2.17246611,3616.6,3616.5,1.2710992]
[1735950109717,2.17246611,3616.6,3616.5,0.9944692]
[1735950109915,4.82881917,3616.7,3616.5,0.9944692]
[1735950110515,4.55219917,3616.7,3616.5,0.9944692]
[1735950110812,4.82881917,3616.7,3616.5,0.9944692]
[1735950111021,0.27662,3616.6,3616.5,0.9944692]
[1735950112719,2.44909775,3616.6,3616.5,0.9944692]
[1735950114220,0.27662,3616.6,3616.5,0.9944692]
[1735950114521,4.82881917,3616.7,3616.5,1.2710992]
[1735950114722,4.82881917,3616.7,3616.5,0.9944692]
[1735950114926,4.82881917,3616.7,3616.5,1.2710992]
[1735950116012,4.55219917,3616.7,3616.5,0.9944692]
[1735950116213,4.82881917,3616.7,3616.5,0.9944692]
[1735950116919,5.65687917,3616.6,3616.5,0.9944692]
[1735950117816,5.38025917,3616.6,3616.5,0.9944692]
[1735950118417,5.65687917,3616.6,3616.5,0.9944692]
[1735950119113,3.48442,3616.6,3616.5,0.9944692]
[1735950119612,3.2078,3616.6,3616.5,1.9889384]
[1735950119816,3.25869917,3616.7,3616.6,0.27662]
[1735950120014,3.25869917,3616.7,3616.6,0.88712]
[1735950121218,0.27658,3617.2,3616.9,0.2766]
[1735950121417,0.27658,3617.2,3617.1,0.9944692]
[1735950122222,2.44856246,3617.3,3617.1,0.9944692]
[1735950122830,2.17199246,3617.2,3617.1,0.9944692]
[1735950123719,3.53526917,3617.3,3617.1,0.9944692]
[1735950123720,2.44856246,3617.3,3617.1,1.2710492]
[1735950123920,2.44856246,3617.3,3617.1,0.9944692]
[1735950124824,2.44856246,3617.3,3617.1,1.2710492]
[1735950125326,6.91676246,3617.4,3617.1,1.2710492]
[1735950125729,6.64019246,3617.4,3617.1,0.9944692]
[1735950126023,6.64019246,3617.4,3617.3,0.9944692]
[1735950126622,4.4682,3617.4,3617.3,0.9944692]
[1735950126825,4.4682,3617.4,3617.3,1.2710392]
[1735950128523,6.63927159,3617.4,3617.3,1.2710392]
[1735950130127,4.4682,3617.4,3617.3,1.2710392]
[1735950130323,4.74476,3617.4,3617.3,0.9944692]
[1735950130524,4.4682,3617.4,3617.3,1.2710392]
[1735950133029,1.2604,3617.4,3617.3,1.2710392]
[1735950133227,4.4682,3617.4,3617.3,1.2710392]
[1735950134533,3.2078,3617.4,3617.3,1.2710392]
[1735950135333,2.17107159,3617.6,3617.5,0.27655]
[1735950135534,2.17107159,3617.6,3617.5,1.2710192]
[1735950137234,1.2824,3618.0,3617.9,0.27652]
[1735950137436,1.2824,3618.0,3617.9,2.3479892]
[1735950141128,1.9087,3618.0,3617.9,2.3479892]
[1735950155233,1.2824,3618.0,3617.9,2.3479892]
[1735950155439,3.8668,3618.3,3617.9,2.0714692]
[1735950155637,3.8668,3618.3,3618.2,0.2765]
[1735950155833,4.14329,3618.3,3618.2,0.2765]
[1735950157441,3.8668,3618.3,3618.2,0.2765]
[1735950158441,3.2078,3618.3,3618.2,0.2765]
[1735950159239,3.48429,3618.3,3618.2,0.2765]
[1735950159438,3.2078,3618.3,3618.2,0.2765]
[1735950160742,5.37887159,3618.7,3618.1,0.9944692]
[1735950160929,2.17107159,3618.7,3618.6,1.2709392]
[1735950161134,2.17107159,3618.7,3618.6,2.3479392]
[1735950162341,0.6778,3619.0,3618.9,0.27645]
[1735950163142,3.2078,3619.1,3618.9,0.9944692]
[1735950163340,3.2078,3619.1,3619.0,0.27644]
[1735950166345,1.3548,3619.4,3619.0,0.27644]
[1735950166641,1.3548,3619.4,3618.7,1.914]
[1735950166642,1.3548,3619.4,3619.3,1.2708892]
[1735950166845,5.37887159,3619.6,3619.5,0.2764]
[1735950167039,5.43114794,3620.1,3619.5,0.2764]
[1735950167040,5.43114794,3620.1,3620.0,0.27636]
[1735950167240,5.43114794,3620.1,3620.0,4.4786292]
[1735950167241,0.90695796,3620.1,3620.0,4.4786292]
[1735950167453,0.24569256,3620.1,3620.0,5.5546292]
[1735950168148,11.9231803,3621.0,3620.0,11.2727384]
[1735950168149,3.2078,3621.0,3620.0,11.2727384]
[1735950168454,3.2078,3621.0,3620.9,0.27629]
[1735950168640,3.2078,3621.0,3620.9,1.35229]
[1735950169138,1.2605,3621.2,3621.0,0.27628]
[1735950169743,1.2605,3621.2,3621.1,0.27628]
[1735950172348,1.2605,3621.2,3621.0,0.27628]
[1735950173051,1.2605,3621.2,3621.1,0.27628]
[1735950173647,1.2605,3621.2,3620.9,4.2838]
[1735950173845,1.2605,3621.2,3621.0,1.076]
[1735950174645,0.27629,3621.0,3620.5,0.27632]
[1735950174954,3.48408,3621.1,3620.6,0.27631]
[1735950176048,3.48408,3621.1,3620.5,0.27632]
[1735950176347,0.27629,3621.0,3620.5,0.27632]
[1735950176853,3.2078,3621.1,3620.4,1.076]
[1735950177041,0.27628,3621.1,3620.7,0.27631]
[1735950177647,0.27628,3621.1,3620.4,1.076]
[1735950177648,0.27629,3621.0,3620.4,1.076]
[1735950177848,0.27629,3621.0,3620.5,0.27632]
[1735950178146,0.63,3620.9,3620.5,0.27632]
[1735950178347,0.63,3620.9,3620.4,1.076]
[1735950178348,0.63,3620.9,3620.6,0.27631]
[1735950179055,0.63,3620.9,3620.7,0.2763]
[1735950179354,0.63,3620.9,3620.8,0.2763]